bitfinex-derivatives/quotes_ETHF0:USTF0_20250331
["timestamp","ask_amount","ask_price","bid_price","bid_amount"]
[1743381218603,0.00835027,1796.5,1796.4,2.889]
[1743381219607,1.12171027,1796.5,1796.4,2.889]
[1743381220807,0.00835027,1796.5,1796.4,2.889]
[1743381221005,1.0,2666.0,1796.4,12.64927989]
[1743381221006,4.2272,1797.2,1796.4,12.64927989]
[1743381221213,1.11324,1796.7,1796.6,3.2078]
[1743381221512,1.11324,1796.7,1796.6,4.5803]
[1743381222607,2.55824,1796.7,1796.6,4.5803]
[1743381222809,2.55824,1796.7,1796.6,1.3725]
[1743381223112,1.11336,1796.5,1796.4,3.2078]
[1743381223310,1.11361,1796.1,1796.0,4.7199]
[1743381223609,1.11358,1796.2,1796.0,5.83357]
[1743381223811,1.11358,1796.2,1796.0,4.7199]
[1743381224209,1.445,1796.4,1796.0,4.7199]
[1743381224514,1.11355,1796.2,1796.1,4.098]
[1743381225114,1.11355,1796.2,1796.1,4.095]
[1743381225511,1.11355,1796.2,1796.0,3.2078]
[1743381225512,1.11361,1796.1,1796.0,3.2078]
[1743381225712,1.11361,1796.1,1796.0,7.2998]
[1743381226110,1.445,1796.4,1796.0,7.2998]
[1743381226417,1.11348,1796.3,1796.2,3.2078]
[1743381226803,1.1134,1796.5,1796.3,1.11347]
[1743381227013,1.11336,1796.6,1796.4,8.0329]
[1743381227217,1.11327,1796.7,1796.5,1.11336]
[1743381227511,0.00835027,1796.8,1796.6,3.2078]
[1743381227713,1.12152027,1796.8,1796.7,4.089]
[1743381227909,0.00835027,1796.8,1796.7,4.7859]
[1743381228118,0.00835027,1796.8,1796.7,6.45594]
[1743381228519,0.00835027,1796.8,1796.7,13.7440986]
[1743381228817,0.00835027,1796.8,1796.7,12.6308586]
[1743381229013,1.12152027,1796.8,1796.7,4.7859]
[1743381230119,1.11324,1796.7,1796.6,3.2078]
[1743381230306,2.55034,1796.7,1796.6,7.2958]
[1743381231621,2.55034,1796.7,1796.6,7.2898]
[1743381232124,2.55034,1796.7,1796.6,3.2078]
[1743381234213,2.60332999,1796.7,1796.6,3.2078]
[1743381234517,4.06572999,1796.7,1796.6,3.2078]
[1743381235220,2.62626624,1796.7,1796.6,3.2078]
[1743381235611,4.29615624,1796.7,1796.2,3.2078]
[1743381235808,1.11341,1796.5,1796.3,5.20245]
[1743381236009,2.4371,1796.7,1796.4,3.13187376]
[1743381236321,2.11326,1796.7,1796.5,1.11333]
[1743381236522,2.11326,1796.7,1796.6,4.7941]
[1743381236718,2.11326,1796.7,1796.6,5.4843]
[1743381236924,1.0,1796.7,1796.6,8.6921]
[1743381237221,1.0,1796.7,1796.6,9.8054]
[1743381238621,1.0,1796.7,1796.6,17.12198468]
[1743381238920,0.00835027,1796.8,1796.7,1.11324]
[1743381239123,0.00835027,1796.8,1796.7,2.54854]
[1743381239319,0.00835027,1796.8,1796.7,9.76709614]
[1743381239514,1.11309,1797.0,1796.7,8.65385614]
[1743381239715,1.11309,1797.0,1796.9,3.2078]
[1743381239920,1.11309,1797.0,1796.9,7.2918]
[1743381240517,1.11342,1796.4,1796.3,3.2078]
[1743381240724,1.11355,1796.2,1796.1,1.431]
[1743381240922,1.11355,1796.2,1796.0,3.898]
[1743381240923,1.11361,1796.1,1796.0,7.08107742]
[1743381241119,1.11367,1796.0,1795.9,0.00835027]
[1743381241626,6.82147,1796.0,1795.9,0.00835027]
[1743381241817,6.8717113,1796.0,1795.9,0.00835027]
[1743381242522,6.8717113,1796.0,1795.4,7.2978]
[1743381242523,1.11398,1795.5,1795.4,3.2078]
[1743381242726,1.1141,1795.3,1795.2,1.431]
[1743381242927,1.1141,1795.3,1795.1,60.8852]
[1743381242928,1.11427,1795.1,1794.9,7.3028]
[1743381243226,1.11427,1795.1,1795.0,1.431]
[1743381243521,1.11429,1795.0,1794.9,3.2078]
[1743381243729,3.61429,1795.0,1794.9,0.00835027]
[1743381244114,6.82209,1795.0,1794.3,3.2078]
[1743381244313,3.2078,1794.8,1794.2,4.152]
[1743381244530,1.437,1794.9,1794.5,3.13243805]
[1743381244731,4.6448,1794.9,1794.2,7.3780282]
[1743381245019,2.78604,1794.8,1794.1,4.676]
[1743381245226,1.11479,1794.2,1794.1,4.676]
[1743381245427,4.6448,1794.7,1794.1,4.676]
[1743381245627,1.11479,1794.3,1794.1,4.676]
[1743381245818,1.11472,1794.3,1794.2,1.4682]
[1743381246926,3.9232,1795.1,1794.2,11.07345419]
[1743381247138,1.11427,1795.1,1794.7,1.11447]
[1743381247324,1.11429,1795.0,1794.9,3.2078]
[1743381247624,1.11429,1795.0,1794.9,4.7068]
[1743381247818,4.5779,1795.5,1794.9,4.7068]
[1743381248017,1.11429,1795.0,1794.9,4.7068]
[1743381248226,1.3701,1795.3,1794.9,4.7068]
[1743381248422,1.11429,1795.0,1794.9,4.7068]
[1743381249222,1.12259027,1795.1,1794.9,4.7068]
[1743381249829,0.00835027,1795.1,1794.9,4.7068]
[1743381250029,1.12264027,1795.1,1794.9,4.7068]
[1743381250828,0.00835027,1795.1,1794.9,4.7068]
[1743381251018,1.12261027,1795.1,1794.9,4.7068]
[1743381251723,0.00835027,1795.1,1794.9,4.7068]
[1743381251919,2.78465,1795.7,1795.0,7.85974372]
[1743381252120,3.5533,1795.9,1795.1,4.6552]
[1743381252332,1.3763,1795.8,1795.3,3.2078]
[1743381252629,1.11402,1795.5,1795.4,1.4474]
[1743381252931,1.11389,1795.7,1795.4,1.4474]
[1743381253232,1.11373,1795.9,1795.6,1.11388]
[1743381253426,1.11373,1795.9,1795.7,8.8619]
[1743381253822,1.11379,1795.8,1795.7,4.6489]
[1743381256325,1.11379,1795.8,1795.7,3.2078]
[1743381256722,1.3708,1796.1,1795.7,4.5845]
[1743381256928,3.2078,1796.4,1795.8,4.203]
[1743381257126,1.11367,1796.0,1795.9,1.3767]
[1743381257633,4.15833,1796.3,1795.9,6.3989]
[1743381257634,1.11359,1796.2,1795.9,6.3989]
[1743381257830,2.48803,1796.3,1796.0,1.11365]
[1743381258030,1.11358,1796.2,1796.1,8.7915]
[1743381258231,6.34362,1796.8,1796.1,8.7915]
[1743381258429,6.34362,1796.8,1796.2,1.3767]
[1743381258430,1.11348,1796.3,1796.2,1.3767]
[1743381259432,1.11339,1796.5,1796.2,1.3767]
[1743381259637,1.11339,1796.5,1796.4,3.2078]
[1743381259837,1.11334,1796.6,1796.4,7.4118]
[1743381260037,1.11334,1796.6,1796.4,9.5746]
[1743381260538,1.11336,1796.5,1796.4,9.5746]
[1743381260736,1.4335,1796.8,1796.4,9.5746]
[1743381261035,1.11336,1796.5,1796.4,2.1628]
[1743381261236,1.11348,1796.3,1796.2,3.2078]
[1743381262936,2.78303,1796.8,1796.2,3.2078]
[1743381263137,1.11342,1796.4,1796.3,5.6421]
[1743381264029,1.11342,1796.4,1796.3,1.4391]
[1743381264228,1.11348,1796.3,1796.2,3.2078]
[1743381264439,1.11361,1796.1,1796.0,4.6469]
[1743381264636,1.16683829,1796.1,1796.0,4.6469]
[1743381265531,0.05322829,1796.1,1796.0,5.76057]
[1743381266538,1.11349,1796.3,1796.1,1.11358]
[1743381266739,1.11349,1796.3,1796.2,5.7177]
[1743381267738,1.13633409,1796.3,1796.2,5.7177]
[1743381267938,0.02284409,1796.3,1796.2,5.7177]
[1743381268142,0.02284409,1796.3,1796.2,8.9255]
[1743381268540,1.13632409,1796.3,1796.2,8.9255]
[1743381269042,0.02284409,1796.3,1796.2,8.9255]
[1743381269243,0.02284409,1796.3,1796.2,10.03905]
[1743381269838,1.13632409,1796.3,1796.2,8.9255]
[1743381270543,0.02284409,1796.3,1796.2,10.03905]
[1743381270740,1.13632409,1796.3,1796.2,8.9255]
[1743381272144,3.23064409,1796.3,1795.8,60.305]
[1743381272344,1.11367,1796.0,1795.9,1.3897]
[1743381272546,1.11367,1796.0,1795.9,4.5975]
[1743381272844,1.13651409,1796.0,1795.9,4.5975]
[1743381273636,1.11379,1795.8,1795.7,8.1002]
[1743381273840,1.11379,1795.8,1795.7,10.60376]
[1743381273841,0.02284409,1795.8,1795.7,10.60376]
[1743381274031,3.6136,1796.5,1795.7,9.4899]
[1743381274239,0.05671196,1795.8,1795.7,6.2821]
[1743381274544,0.05671196,1795.8,1795.7,10.60376]
[1743381274946,1.11361,1796.1,1795.9,1.1137]
[1743381275147,1.11361,1796.1,1796.0,8.8288]
[1743381275346,1.11358,1796.2,1796.0,8.8288]
[1743381275539,1.4975,1796.3,1796.0,8.8288]
[1743381275739,1.4975,1796.3,1796.0,5.621]
[1743381275941,1.11361,1796.1,1796.0,8.8288]
[1743381276139,1.11361,1796.1,1796.0,4.6448]
[1743381276541,1.11367,1796.0,1795.9,4.182]
[1743381276840,1.11386,1795.7,1795.6,0.00835027]
[1743381277036,1.11386,1795.7,1795.6,1.52485027]
[1743381279345,1.11386,1795.7,1795.6,0.00835027]
[1743381279740,1.4147,1795.9,1795.6,3.21615027]
[1743381279941,1.11386,1795.7,1795.6,0.00835027]
[1743381281155,2.58476,1795.7,1795.6,0.00835027]
[1743381284043,3.2078,1796.2,1795.6,7.39215027]
[1743381284242,1.11379,1795.8,1795.7,2.0906]
[1743381285547,1.4923,1796.1,1795.7,2.0906]
[1743381285752,1.11372,1796.0,1795.8,1.11377]
[1743381286047,1.11372,1796.0,1795.9,1.3774]
[1743381286748,1.11379,1795.8,1795.7,3.921]
[1743381287048,1.11379,1795.8,1795.7,5.3149]
[1743381287244,1.11379,1795.8,1795.7,2.1071]
[1743381287651,1.11379,1795.8,1795.7,1.3939]
[1743381287858,1.11386,1795.7,1795.6,1.40225027]
[1743381288852,1.4303,1795.9,1795.6,1.40225027]
[1743381289062,1.11378,1795.9,1795.7,4.32165]
[1743381289355,1.11378,1795.9,1795.8,1.3657]
[1743381293853,1.4137,1796.1,1795.9,1.11371]
[1743381294050,1.11364,1796.1,1796.0,1.3854]
[1743381295352,1.11364,1796.1,1796.0,5.5284]
[1743381295959,1.11358,1796.2,1796.0,6.64207]
[1743381296155,1.11361,1796.1,1796.0,6.2834]
[1743381300159,1.11361,1796.1,1796.0,1.3854]
[1743381300364,1.11367,1796.0,1795.9,8.0423]
[1743381300661,2.59807,1796.0,1795.9,8.0423]
[1743381301559,3.49026,1796.3,1795.9,8.0423]
[1743381301766,1.11361,1796.1,1796.0,1.3829]
[1743381302462,3.2078,1796.5,1796.0,1.3829]
[1743381302764,1.11361,1796.1,1796.0,1.3829]
[1743381303357,1.11367,1796.0,1795.9,3.9273]
[1743381303568,2.61967,1796.0,1795.9,3.9273]
[1743381304469,1.11367,1796.0,1795.9,5.3102]
[1743381305263,1.11367,1796.0,1795.2,60.232]
[1743381305264,1.1141,1795.3,1795.2,60.232]
[1743381305560,1.11417,1795.2,1795.1,0.6983]
[1743381305767,1.11417,1795.2,1795.1,2.114]
[1743381305969,1.4339,1795.5,1795.1,2.114]
[1743381306164,1.11416,1795.3,1795.2,1.4157]
[1743381307467,2.61956,1795.3,1795.2,1.4157]
[1743381308073,0.00835027,1795.4,1795.2,1.4157]
[1743381308262,0.00835027,1795.4,1795.3,5.2291]
[1743381308468,1.11389,1795.7,1795.4,1.114]
[1743381308666,1.11388,1795.7,1795.5,4.32176]
[1743381308871,1.11388,1795.7,1795.6,5.5483]
[1743381309665,1.11388,1795.7,1795.6,1.4283]
[1743381309965,1.11398,1795.5,1795.4,4.114]
[1743381311279,1.11393,1795.6,1795.4,6.5948]
[1743381311473,1.11393,1795.6,1795.5,3.2078]
[1743381311669,1.11393,1795.6,1795.5,1.3668]
[1743381311977,1.11393,1795.6,1795.5,4.5746]
[1743381313968,1.11388,1795.7,1795.5,4.5746]
[1743381314174,1.11386,1795.7,1795.5,4.5746]
[1743381314367,1.11392,1795.6,1795.5,4.5746]
[1743381314779,1.11387,1795.7,1795.5,5.68856]
[1743381314978,1.11392,1795.6,1795.5,4.5746]
[1743381315171,1.5054,1795.8,1795.5,4.5746]
[1743381315378,1.11392,1795.6,1795.5,4.5746]
[1743381317780,1.11417,1795.2,1795.1,3.21615027]
[1743381317982,1.11417,1795.2,1795.1,0.00835027]
[1743381318173,1.11417,1795.2,1795.1,1.45685027]
[1743381320477,1.11417,1795.2,1795.1,0.00835027]
[1743381320882,5.51827,1795.2,1795.1,0.00835027]
[1743381321083,1.11435,1794.9,1794.8,1.3753]
[1743381321377,1.11448,1794.7,1794.6,4.7938]
[1743381321584,1.11454,1794.6,1794.5,1.3753]
[1743381321779,3.2078,1794.8,1794.2,4.4512]
[1743381321987,1.11472,1794.3,1794.2,4.7938]
[1743381322394,1.11472,1794.3,1794.2,0.6858]
[1743381323192,1.11472,1794.3,1794.2,2.1602]
[1743381324588,1.11472,1794.3,1794.1,7.31515027]
[1743381324589,1.11479,1794.2,1794.1,0.00835027]
[1743381324892,2.55999,1794.2,1794.1,0.00835027]
[1743381325195,1.11479,1794.2,1794.1,0.00835027]
[1743381328091,4.32259,1794.2,1794.1,0.00835027]
[1743381328794,1.1151,1793.7,1793.6,3.2078]
[1743381329684,1.4669,1794.1,1793.6,3.2078]
[1743381329884,3.2078,1794.5,1794.0,3.2078]
[1743381330091,3.2078,1794.5,1794.1,1.4259]
[1743381330092,1.11479,1794.2,1794.1,1.4259]
[1743381330493,3.2078,1794.5,1794.1,1.4259]
[1743381330693,1.1147,1794.4,1794.2,3.2078]
[1743381330889,0.00835027,1794.7,1794.3,5.5419]
[1743381331091,1.1146,1794.5,1794.4,4.6337]
[1743381331393,0.00835027,1794.7,1794.4,4.6337]
[1743381331594,0.00835027,1794.7,1794.6,3.2078]
[1743381331789,1.11431,1795.0,1794.7,1.11445]
[1743381332099,1.11435,1794.9,1794.8,4.6242]
[1743381332294,1.11435,1794.9,1794.8,8.7442]
[1743381332494,1.11435,1794.9,1794.8,5.5364]
[1743381333091,1.11441,1794.8,1794.7,0.00835027]
[1743381333290,2.58431,1794.8,1794.7,0.00835027]
[1743381334787,1.11441,1794.8,1794.7,0.00835027]
[1743381336489,1.12268027,1795.0,1794.7,7.35015027]
[1743381336691,0.00835027,1795.0,1794.8,4.6044]
[1743381336888,1.12264027,1795.0,1794.9,1.3966]
[1743381338097,1.11435,1794.9,1794.8,3.2078]
[1743381338898,0.00835027,1795.0,1794.8,3.2078]
[1743381339100,1.11435,1794.9,1794.8,3.2078]
[1743381340108,1.11441,1794.8,1794.7,0.00835027]
[1743381340305,1.11479,1794.2,1794.1,3.2078]
[1743381340512,1.11485,1794.1,1794.0,0.7087]
[1743381343202,1.11491,1794.0,1793.9,0.00835027]
[1743381343707,4.32271,1794.0,1793.9,0.00835027]
[1743381343902,6.82271,1794.0,1793.9,0.00835027]
[1743381344406,6.82271,1794.0,1793.4,3.2078]
[1743381344407,2.78755,1793.9,1793.0,3.2078]
[1743381344603,5.99571,1793.6,1793.0,3.9574]
[1743381344802,1.11537,1793.3,1793.0,5.07293]
[1743381345004,1.11537,1793.3,1793.0,3.9574]
[1743381345310,1.11547,1793.1,1793.0,3.9574]
[1743381345508,0.00835027,1793.2,1793.0,3.9574]
[1743381345711,0.00835027,1793.2,1793.1,7.16058739]
[1743381345909,0.00835027,1793.2,1793.1,1.11547]
[1743381346105,0.00835027,1793.2,1793.0,5.07291]
[1743381346305,0.00835027,1793.2,1793.0,6.4574]
[1743381346511,0.00835027,1793.2,1793.0,7.5729]
[1743381346713,0.00835027,1793.2,1793.0,3.9574]
[1743381346910,1.12381027,1793.2,1793.0,3.9574]
[1743381347212,1.11547,1793.1,1793.0,3.9574]
[1743381348013,1.11547,1793.1,1793.0,0.7496]
[1743381348307,1.11553,1793.0,1792.9,0.00835027]
[1743381349810,3.61553,1793.0,1792.9,0.00835027]
[1743381350115,1.11553,1793.0,1792.9,0.00835027]
[1743381352411,0.00835027,1793.2,1792.9,0.00835027]
[1743381352610,0.00835027,1793.2,1793.0,3.2078]
[1743381352812,0.00835027,1793.2,1793.1,1.11547]
[1743381353113,0.00835027,1793.2,1793.0,5.01739]
[1743381353311,0.00835027,1793.2,1793.1,1.79887]
[1743381353506,0.00835027,1793.2,1793.1,0.6834]
[1743381353705,1.12376027,1793.2,1793.1,0.6834]
[1743381353905,0.00835027,1793.2,1793.1,0.6834]
[1743381354212,3.2078,1793.7,1793.1,11.1448452]
[1743381354413,1.11513,1793.7,1793.4,4.32305]
[1743381354613,1.3934,1793.9,1793.5,4.184]
[1743381354810,3.2078,1794.1,1793.6,3.2078]
[1743381355019,1.11504,1793.8,1793.6,3.2078]
[1743381355319,1.11504,1793.8,1793.6,3.8912]
[1743381355508,0.00835027,1794.0,1793.6,3.8912]
[1743381355509,1.12329027,1794.0,1793.6,3.8912]
[1743381355707,0.00835027,1794.0,1793.8,3.2078]
[1743381355925,1.12329027,1794.0,1793.9,4.179]
[1743381356507,1.12329027,1794.0,1793.9,1.3938]
[1743381356709,1.11504,1793.8,1793.7,5.5688]
[1743381357717,1.5095,1793.9,1793.5,3.21615027]
[1743381358022,1.11514,1793.7,1793.5,3.21615027]
[1743381358207,1.11502,1793.9,1793.6,2.50896]
[1743381358410,1.12330027,1794.0,1793.8,3.2078]
[1743381358606,0.00835027,1794.0,1793.9,2.50877]
[1743381358812,1.1148,1794.2,1793.9,9.71142083]
[1743381359005,1.5095,1794.4,1794.0,8.50271]
[1743381359215,1.147,1794.8,1794.2,3.2078]
[1743381359419,1.11463,1794.5,1794.4,3.2078]
[1743381359622,1.11463,1794.5,1794.4,4.6985]
[1743381359814,1.11463,1794.5,1794.4,1.4907]
[1743381360318,0.00835027,1794.6,1794.4,4.6985]
[1743381360512,1.12291027,1794.6,1794.4,4.6985]
[1743381360714,3.9376,1795.2,1794.4,4.6985]
[1743381360916,4.21749,1795.1,1794.6,3.2078]
[1743381361112,1.11437,1794.9,1794.7,5.6767]
[1743381361312,1.11441,1794.8,1794.7,5.6767]
[1743381361519,1.11439,1794.9,1794.7,5.6767]
[1743381361707,1.11433,1795.0,1794.8,3.2078]
[1743381361908,1.11435,1794.9,1794.8,3.2078]
[1743381362215,1.11435,1794.9,1794.7,4.186]
[1743381362616,1.11433,1795.0,1794.8,3.2078]
[1743381362914,1.4792,1795.2,1794.8,3.2078]
[1743381362915,1.11435,1794.9,1794.8,3.2078]
[1743381363121,1.11441,1794.8,1794.7,4.186]
[1743381363312,2.59361,1794.8,1794.7,4.186]
[1743381363714,1.11441,1794.8,1794.7,4.186]
[1743381363917,3.2078,1795.3,1794.7,5.30046]
[1743381364122,1.11437,1794.9,1794.7,4.895]
[1743381364324,1.11441,1794.8,1794.7,4.895]
[1743381364724,1.4792,1795.2,1794.7,4.888]
[1743381365023,1.11441,1794.8,1794.7,4.888]
[1743381365218,1.11441,1794.8,1794.7,4.9]
[1743381365522,1.11448,1794.7,1794.6,3.2078]
[1743381365819,1.11448,1794.7,1794.6,7.3988]
[1743381368118,4.32228,1794.7,1794.6,4.191]
[1743381368318,1.1146,1794.5,1794.4,3.2078]
[1743381370522,1.11451,1794.7,1794.4,3.2078]
[1743381370723,1.11448,1794.7,1794.6,3.2078]
[1743381370932,1.11454,1794.6,1794.5,4.8956]
[1743381371522,1.11447,1794.8,1794.5,6.01017]
[1743381371724,1.11438,1794.9,1794.7,1.11446]
[1743381372027,1.11438,1794.9,1794.6,5.0395]
[1743381372227,1.11442,1794.8,1794.6,5.0395]
[1743381372428,1.11427,1795.1,1794.8,1.11438]
[1743381372629,1.11427,1795.1,1794.9,4.175]
[1743381373023,1.11429,1795.0,1794.9,4.175]
[1743381373728,1.11424,1795.1,1794.9,4.175]
[1743381373926,1.11424,1795.1,1795.0,3.2078]
[1743381374929,1.11429,1795.0,1794.8,3.2078]
[1743381375130,2.78558,1795.1,1794.6,0.7172]
[1743381375433,2.78537,1795.3,1794.7,3.2078]
[1743381375620,1.11439,1794.9,1794.7,4.32224]
[1743381375926,1.11439,1794.9,1794.7,3.2078]
[1743381376232,1.11441,1794.8,1794.6,4.8812]
[1743381376429,1.11441,1794.8,1794.7,4.6882]
[1743381376733,1.11439,1794.9,1794.7,5.80267]
[1743381376928,1.4106,1795.2,1794.7,4.6882]
[1743381377133,1.11421,1795.2,1794.9,3.2078]
[1743381377428,1.11423,1795.1,1795.0,1.3934]
[1743381378424,2.78573,1795.0,1794.3,0.00835027]
[1743381378630,1.11454,1794.6,1794.5,1.3934]
[1743381380230,0.7153,1795.0,1794.5,5.5644]
[1743381380435,1.11454,1794.7,1794.5,1.3934]
[1743381380631,2.202,1795.0,1794.5,2.50796]
[1743381380828,1.11444,1794.8,1794.6,4.32233]
[1743381381036,1.11437,1794.9,1794.7,2.58364]
[1743381381236,1.11441,1794.8,1794.7,1.4692]
[1743381382125,1.1146,1794.5,1794.4,0.732]
[1743381382537,1.4867,1794.7,1794.4,3.9398]
[1743381382726,1.11445,1794.8,1794.6,3.2078]
[1743381383041,1.11448,1794.7,1794.6,3.2078]
[1743381385342,1.11448,1794.7,1794.3,0.00835027]
[1743381385343,1.11466,1794.4,1794.3,0.00835027]
[1743381386156,5.7078,1794.4,1793.7,3.2078]
[1743381386350,3.2078,1794.3,1794.0,1.11491]
[1743381386559,1.11485,1794.1,1794.0,7.24716747]
[1743381386850,1.38475027,1794.5,1794.0,7.24716747]
[1743381386851,1.11482,1794.2,1794.0,3.2078]
[1743381387251,1.38475027,1794.5,1794.0,3.2078]
[1743381387448,1.38475027,1794.5,1794.1,1.80483]
[1743381387449,1.11473,1794.3,1794.1,1.80483]
[1743381387754,1.11485,1794.1,1794.0,3.2078]
[1743381387952,1.3764,1794.2,1794.0,3.2078]
[1743381388257,0.00835027,1794.5,1794.0,3.2078]
[1743381388554,0.00835027,1794.5,1794.1,0.69]
[1743381388753,1.11477,1794.3,1794.1,0.69]
[1743381389354,1.11479,1794.2,1794.1,0.69]
[1743381389956,1.11485,1794.1,1794.0,3.2078]
[1743381390553,4.59255027,1794.5,1794.0,3.2078]
[1743381391054,1.11466,1794.4,1794.2,3.2078]
[1743381391353,1.11472,1794.3,1794.2,4.258]
[1743381391559,1.1148,1794.2,1794.0,4.32271]
[1743381391756,1.1148,1794.2,1794.1,4.264]
[1743381392052,1.11477,1794.3,1794.1,4.264]
[1743381392254,1.11479,1794.2,1794.1,4.264]
[1743381392758,1.11475,1794.3,1794.1,5.37885]
[1743381393050,1.38475027,1794.5,1794.1,4.264]
[1743381393051,1.11479,1794.2,1794.1,4.264]
[1743381393559,0.00835027,1794.5,1794.1,6.764]
[1743381393756,1.11468,1794.4,1794.2,5.06936]
[1743381393959,0.00835027,1794.5,1794.2,3.9546]
[1743381394152,0.00835027,1794.5,1794.4,4.32246]
[1743381394358,1.11443,1794.8,1794.4,7.4718]
[1743381394656,1.11448,1794.7,1794.5,4.32238]
[1743381395857,1.11448,1794.7,1794.5,3.2078]
[1743381396161,1.11479,1794.2,1794.1,3.2078]
[1743381396659,1.11479,1794.2,1794.1,1.3708]
[1743381397060,1.11479,1794.2,1794.1,4.5786]
[1743381397362,0.4337,1794.8,1794.1,4.5786]
[1743381397363,3.2078,1794.7,1794.1,4.5786]
[1743381397656,1.11466,1794.5,1794.3,3.2078]
[1743381397862,1.11466,1794.4,1794.3,3.9089]
[1743381398356,1.11484,1794.2,1794.1,3.2078]
[1743381398562,1.11484,1794.2,1794.1,7.4698]
[1743381399064,1.11484,1794.2,1794.1,3.2078]
[1743381399861,1.11491,1794.0,1793.9,0.00835027]
[1743381400066,4.32271,1794.0,1793.9,0.00835027]
[1743381400256,6.82271,1794.0,1793.9,0.00835027]
[1743381400455,8.30731,1794.0,1793.9,0.00835027]
[1743381400859,1.11522,1793.5,1793.4,0.6957]
[1743381401061,1.11528,1793.4,1793.3,3.2078]
[1743381401267,2.59988,1793.4,1793.3,3.2078]
[1743381401753,1.11547,1793.1,1793.0,3.9035]
[1743381401958,1.11547,1793.1,1793.0,4.9597]
[1743381402565,1.11547,1793.1,1793.0,0.6957]
[1743381402761,1.11553,1793.0,1792.9,0.00835027]
[1743381404063,1.11591,1792.4,1792.3,3.2078]
[1743381404473,1.11611,1792.1,1791.9,4.27]
[1743381404767,1.11611,1792.1,1792.0,3.2078]
[1743381405660,0.00835027,1792.2,1792.0,3.2078]
[1743381405867,1.11609,1792.1,1792.0,3.2078]
[1743381406261,9.9958,1792.1,1791.5,0.02100275]
[1743381406570,5.7554,1792.0,1791.5,0.02100275]
[1743381406860,1.1164,1791.6,1791.5,0.02100275]
[1743381407061,5.7554,1792.0,1791.5,0.02100275]
[1743381407062,1.4644,1792.0,1791.5,0.02100275]
[1743381407263,0.00835027,1792.2,1791.7,3.2078]
[1743381407566,0.00835027,1792.2,1791.5,5.43044275]
[1743381407567,0.00835027,1792.2,1791.8,7.5028]
[1743381407861,1.11618,1792.0,1791.8,7.5028]
[1743381408267,1.11613,1792.1,1791.8,7.5028]
[1743381408455,1.11609,1792.1,1791.8,7.5028]
[1743381408859,1.11609,1792.1,1792.0,3.2078]
[1743381409567,0.00835027,1792.2,1792.0,3.2078]
[1743381409861,1.11592,1792.4,1792.1,4.283]
[1743381410064,4.6699,1792.7,1792.2,3.2078]
[1743381410563,1.11597,1792.3,1792.2,3.7662]
[1743381410867,4.6699,1792.7,1792.2,3.2078]
[1743381411075,1.12429027,1792.4,1792.2,3.2078]
[1743381411263,1.11597,1792.3,1792.2,7.4878]
[1743381411768,1.12429027,1792.4,1792.2,7.4878]
[1743381411975,0.00835027,1792.4,1792.2,7.4878]
[1743381412175,0.00835027,1792.4,1792.2,14.75691728]
[1743381412671,1.11581,1792.6,1792.2,15.87290728]
[1743381412872,1.11581,1792.6,1792.5,3.2078]
[1743381413071,4.26854,1793.0,1792.5,3.2078]
[1743381413272,1.11578,1792.6,1792.5,3.2078]
[1743381414370,1.11584,1792.5,1792.4,0.00835027]
[1743381415168,3.61584,1792.5,1792.4,0.00835027]
[1743381415375,2.78977,1792.4,1791.4,4.274]
[1743381415571,1.11631,1791.8,1791.7,3.2078]
[1743381415776,1.11625,1791.9,1791.5,4.34522275]
[1743381415969,1.11634,1791.8,1791.5,3.93390275]
[1743381416176,1.11635,1791.7,1791.5,3.93390275]
[1743381416571,1.11635,1791.7,1791.6,1.4803]
[1743381418676,0.00835027,1791.8,1791.6,1.4803]
[1743381418877,1.11634,1791.7,1791.6,4.6881]
[1743381419873,0.00835027,1791.8,1791.6,8.30448]
[1743381420080,0.00835027,1791.8,1791.7,5.6284]
[1743381420377,1.11605,1792.2,1791.9,1.11618]
[1743381420571,1.4162,1792.5,1792.1,3.2078]
[1743381420777,2.78908,1792.9,1792.3,3.2078]
[1743381420971,2.78961,1792.6,1792.2,7.11740927]
[1743381421172,1.11597,1792.3,1792.2,7.11740927]
[1743381421478,1.11597,1792.3,1792.2,0.00835027]
[1743381421878,2.53217,1792.3,1792.2,0.00835027]
[1743381425072,1.11597,1792.3,1792.2,0.00835027]
[1743381425877,1.11597,1792.3,1792.2,1.46675027]
[1743381426277,1.11597,1792.3,1792.2,0.00835027]
[1743381426473,2.53807,1792.3,1792.2,0.00835027]
[1743381427679,1.1164,1791.6,1791.4,3.2078]
[1743381427886,1.1164,1791.6,1791.4,8.1981]
[1743381428385,1.1164,1791.6,1791.4,9.31461]
[1743381428686,1.1164,1791.6,1791.4,8.7565]
[1743381428874,1.1164,1791.6,1791.5,1.52900275]
[1743381430486,1.11647,1791.5,1791.4,0.00835027]
[1743381430680,1.11678,1791.0,1790.9,1.508]
[1743381430888,1.11678,1791.0,1790.8,3.2078]
[1743381430889,1.11684,1790.9,1790.8,3.2078]
[1743381431187,1.11709,1790.5,1790.4,3.2078]
[1743381431486,5.99963,1791.1,1790.4,7.4628]
[1743381431690,1.11709,1790.5,1790.4,3.2078]
[1743381432185,1.11715,1790.4,1790.3,0.00837451]
[1743381432386,1.11715,1790.4,1789.2,3.2078]
[1743381432387,2.7932,1790.2,1789.2,3.2078]
[1743381432588,2.7932,1790.2,1789.5,4.5932]
[1743381432589,1.11757,1789.8,1789.5,4.5932]
[1743381432789,1.11765,1789.6,1789.5,4.5932]
[1743381432979,1.11778,1789.4,1789.3,3.2078]
[1743381433185,1.11784,1789.3,1789.2,8.7969897]